fUST/lending_fUST_20250302
["ID","MTS","AMOUNT","RATE_DAILY","PERIOD"]
[355037315,1740877874799,-828.16,0.00025753,2]
[355037316,1740877874809,-1378.883154,0.00025753,7]
[355037317,1740877874819,-509.44,0.00025753,2]
[355037318,1740877874829,-151.0,0.00025753,7]
[355037319,1740877874840,-500.0,0.00025753,2]
[355037320,1740877874850,-151.0,0.00025753,7]
[355037321,1740877874860,-151.0,0.00025753,7]
[355037322,1740877874870,-500.0,0.00025753,2]
[355037323,1740877874881,-500.0,0.00025753,2]
[355037324,1740877874891,-151.0,0.00025753,7]
[355037325,1740877874902,-500.0,0.00025753,2]
[355037326,1740877874913,-500.0,0.00025753,2]
[355037327,1740877874923,-151.0,0.00025753,7]
[355037328,1740877874934,-500.0,0.00025753,2]
[355037329,1740877874944,-162.635591,0.00025753,7]
[355037330,1740877874953,-500.0,0.00025753,2]
[355037331,1740877874964,-1645.57,0.00025753,2]
[355037332,1740877874975,-500.0,0.00025753,2]
[355037333,1740877874985,-162.635591,0.00025753,7]
[355037334,1740877874996,-656.48,0.00025753,2]
[355037335,1740877875006,-500.0,0.00025753,2]
[355037336,1740877875016,-500.0,0.00025753,2]
[355037337,1740877875026,-499.638185,0.00025753,7]
[355037338,1740877875036,-1340.71,0.00025753,2]
[355037339,1740877875047,-500.0,0.00025753,2]
[355037340,1740877875057,-500.0,0.00025753,2]
[355037341,1740877875067,-500.0,0.00025753,2]
[355037342,1740877875078,-500.0,0.00025753,2]
[355037343,1740877875087,-500.0,0.00025753,2]
[355037344,1740877875097,-526.96,0.00025753,2]
[355037345,1740877875107,-500.0,0.00025753,2]
[355037346,1740877875117,-151.0,0.00025753,7]
[355037347,1740877875127,-500.0,0.00025753,2]
[355037348,1740877875138,-914.1,0.00025753,2]
[355037349,1740877875148,-500.0,0.00025753,2]
[355037350,1740877875158,-511.95,0.00025753,2]
[355037351,1740877875168,-1312.81,0.00025753,2]
[355037352,1740877875178,-346.449302,0.00025753,7]
[355037353,1740877875190,-500.0,0.00025753,2]
[355037354,1740877875200,-346.449302,0.00025753,7]
[355037355,1740877875211,-660.28,0.00025753,2]
[355037356,1740877875220,-500.0,0.00025753,2]
[355037357,1740877875235,-500.0,0.00025753,2]
[355037358,1740877875245,-200.523826,0.00025753,7]
[355037359,1740877875255,-857.14,0.00025753,2]
[355037360,1740877875267,-200.523826,0.00025753,7]
[355037361,1740877875277,-1545.03,0.00025753,2]
[355037362,1740877875287,-500.0,0.00025753,2]
[355037363,1740877875297,-500.0,0.00025753,2]
[355037364,1740877875307,-994.65,0.00025753,2]
[355037365,1740877875538,-500.0,0.00025753,2]
[355037366,1740877875568,-643.16,0.00025753,2]
[355037367,1740877875579,-500.0,0.00025753,2]
[355037368,1740877875590,-500.0,0.00025753,2]
[355037369,1740877875600,-539.85,0.00025753,2]
[355037370,1740877875611,-500.0,0.00025753,2]
[355037371,1740877875622,-500.0,0.00025753,2]
[355037372,1740877875634,-151.0,0.00025753,7]
[355037373,1740877875644,-151.0,0.00025753,7]
[355037374,1740877875654,-500.0,0.00025753,2]
[355037375,1740877875664,-151.0,0.00025753,7]
[355037376,1740877875679,-252.531296,0.00025753,7]
[355037377,1740877875690,-500.0,0.00025753,2]
[355037378,1740877875706,-593.21,0.00025753,2]
[355037379,1740877875717,-500.0,0.00025753,2]
[355037380,1740877875727,-1409.88,0.00025753,2]
[355037381,1740877875738,-500.0,0.00025753,2]
[355037382,1740877875748,-500.0,0.00025753,2]
[355037383,1740877875758,-785.23,0.00025753,2]
[355037384,1740877875769,-500.0,0.00025753,2]
[355037385,1740877875780,-500.0,0.00025753,2]
[355037386,1740877875790,-299.37873182,0.00025753,2]
[355037387,1740877875801,-525.04,0.00025753,2]
[355037388,1740877875812,-503.95,0.00025753,2]
[355037389,1740877875822,-500.0,0.00025753,2]
[355037390,1740877875832,-604.33,0.00025753,2]
[355037391,1740877875843,-500.0,0.00025753,2]
[355037392,1740877875854,-500.0,0.00025753,2]
[355037393,1740877875864,-768.63,0.00025753,2]
[355037394,1740877875874,-1171.5,0.00025753,2]
[355037395,1740877875884,-500.0,0.00025753,2]
[355037396,1740877875895,-1291.1,0.00025753,2]
[355037397,1740877875906,-218.81770486,0.00025753,2]
[355037398,1740877875916,-500.0,0.00025753,2]
[355037399,1740877875927,-1898.76,0.00025753,2]
[355037400,1740877875937,-500.0,0.00025753,2]
[355037401,1740877875948,-500.0,0.00025753,2]
[355037402,1740877875958,-500.0,0.00025753,2]
[355037403,1740877875970,-500.0,0.00025753,2]
[355037404,1740877875981,-500.0,0.00025753,2]
[355037405,1740877875991,-613.07,0.00025753,2]
[355037406,1740877876002,-500.0,0.00025753,2]
[355037407,1740877876012,-500.0,0.00025753,2]
[355037408,1740877876023,-500.0,0.00025753,2]
[355037409,1740877876034,-373.60693392,0.00025753,2]
[355037410,1740877876045,-1748.83,0.00025753,2]
[355037411,1740877876055,-500.0,0.00025753,2]
[355037412,1740877876065,-500.0,0.00025753,2]
[355037413,1740877876075,-500.0,0.00025753,2]
[355037414,1740877876086,-500.0,0.00025753,2]
[355037415,1740877876096,-845.02,0.00025753,2]
[355037416,1740877876106,-1775.3,0.00025753,2]
[355037417,1740877876116,-1280.31,0.00025753,2]
[355037418,1740877876126,-500.0,0.00025753,2]
[355037419,1740877876137,-227.698802,0.00025753,7]
[355037420,1740877876147,-1652.1,0.00025753,2]
[355037421,1740877876158,-227.698802,0.00025753,7]
[355037422,1740877876170,-500.0,0.00025753,2]
[355037423,1740877876181,-500.0,0.00025753,2]
[355037424,1740877876192,-227.698802,0.00025753,7]
[355037425,1740877876202,-500.0,0.00025753,2]
[355037426,1740877876213,-227.698802,0.00025753,7]
[355037427,1740877876225,-500.0,0.00025753,2]
[355037428,1740877876236,-709.16,0.00025753,2]
[355037429,1740877876246,-1152.82,0.00025753,2]
[355037430,1740877876256,-500.0,0.00025753,2]
[355037431,1740877876266,-500.0,0.00025753,2]
[355037432,1740877876277,-500.0,0.00025753,2]
[355037433,1740877876288,-509.99542048,0.00025753,2]
[355037434,1740877876298,-500.0,0.00025753,2]
[355037435,1740877876308,-583.0,0.00025753,2]
[355037436,1740877876318,-500.0,0.00025753,2]
[355037437,1740877876329,-268.19323666,0.00025753,2]
[355037438,1740877876339,-500.0,0.00025753,2]
[355037439,1740877876349,-500.0,0.00025753,2]
[355037440,1740877876362,-757.03,0.00025753,2]
[355037441,1740877876374,-500.0,0.00025753,2]
[355037442,1740877876384,-500.0,0.00025753,2]
[355037443,1740877876394,-168.040248,0.00025753,7]
[355037444,1740877876406,-168.040248,0.00025753,7]
[355037445,1740877876416,-669.95,0.00025753,2]
[355037446,1740877876426,-1999.0,0.00025753,2]
[355037447,1740877876437,-168.040248,0.00025753,7]
[355037448,1740877876448,-168.040248,0.00025753,7]
[355037449,1740877876459,-543.17,0.00025753,2]
[355037450,1740877876470,-1069.47,0.00025753,2]
[355037451,1740877876481,-200.0,0.00025753,2]
[355037452,1740877876491,-500.0,0.00025753,2]
[355037453,1740877876502,-893.73,0.00025753,2]
[355037454,1740877876512,-500.0,0.00025753,2]
[355037455,1740877876523,-519.36,0.00025753,2]
[355037456,1740877876533,-500.0,0.00025753,2]
[355037457,1740877876544,-1882.552513,0.00025753,7]
[355037458,1740877876555,-1882.552513,0.00025753,7]
[355037459,1740877876566,-500.0,0.00025753,2]
[355037460,1740877876576,-718.22,0.00025753,2]
[355037461,1740877876586,-1882.552513,0.00025753,7]
[355037462,1740877876597,-1882.552513,0.00025753,7]
[355037463,1740877876609,-500.0,0.00025753,2]
[355037464,1740877876620,-500.0,0.00025753,2]
[355037465,1740877876631,-729.5,0.00025753,2]
[355037466,1740877876643,-1210.72,0.00025753,2]
[355037467,1740877876653,-500.0,0.00025753,2]
[355037468,1740877876663,-720.06,0.00025753,2]
[355037469,1740877876673,-500.0,0.00025753,2]
[355037470,1740877876682,-525.25,0.00025753,2]
[355037471,1740877876693,-500.0,0.00025753,2]
[355037472,1740877876704,-500.0,0.00025753,2]
[355037473,1740877876714,-526.48143405,0.00025753,2]
[355037474,1740877876723,-500.0,0.00025753,2]
[355037475,1740877876734,-892.38,0.00025753,2]
[355037476,1740877876743,-500.0,0.00025753,2]
[355037477,1740877876753,-299.30900442,0.00025753,7]
[355037478,1740877876763,-150.43,0.00025753,7]
[355037479,1740877876772,-158.0,0.00025753,7]
[355037480,1740877876782,-500.0,0.00025753,2]
[355037481,1740877876792,-500.0,0.00025753,2]
[355037482,1740877876801,-500.0,0.00025753,2]
[355037483,1740877876811,-679.6,0.00025753,2]
[355037484,1740877876820,-500.0,0.00025753,2]
[355037485,1740877876830,-625.19,0.00025753,2]
[355037486,1740877876840,-500.0,0.00025753,2]
[355037487,1740877876849,-500.0,0.00025753,2]
[355037488,1740877876859,-500.0,0.00025753,2]
[355037489,1740877876869,-500.0,0.00025753,2]
[355037490,1740877876878,-3235.54,0.00025753,2]
[355037491,1740877876888,-1054.92,0.00025753,2]
[355037492,1740877876898,-511.38424557,0.00025753,2]
[355037493,1740877876908,-1282.19,0.00025753,2]
[355037494,1740877876917,-151.0,0.00025753,7]
[355037495,1740877876926,-638.84,0.00025753,2]
[355037496,1740877876936,-151.0,0.00025753,7]
[355037497,1740877876945,-500.0,0.00025753,2]
[355037498,1740877876955,-500.0,0.00025753,2]
[355037499,1740877876964,-500.0,0.00025753,2]
[355037500,1740877876973,-232.749812,0.00025753,7]
[355037501,1740877876983,-500.0,0.00025753,2]
[355037502,1740877876992,-500.0,0.00025753,2]
[355037503,1740877877002,-2041.67,0.00025753,2]
[355037504,1740877877012,-151.0,0.00025753,7]
[355037505,1740877877022,-151.0,0.00025753,7]
[355037506,1740877877031,-500.0,0.00025753,2]
[355037507,1740877877042,-500.0,0.00025753,2]
[355037508,1740877877051,-500.0,0.00025753,2]
[355037509,1740877877061,-1336.3,0.00025753,2]
[355037510,1740877877070,-602.1,0.00025753,2]
[355037511,1740877877079,-2130.69,0.00025753,2]
[355037512,1740877877089,-500.0,0.00025753,2]
[355037513,1740877877099,-500.0,0.00025753,2]
[355037514,1740877877108,-500.0,0.00025753,2]
[355037515,1740877877118,-500.0,0.00025753,2]
[355037516,1740877877127,-500.0,0.00025753,2]
[355037517,1740877877137,-500.0,0.00025753,2]
[355037518,1740877877147,-2639.74,0.00025753,2]
[355037519,1740877877156,-500.0,0.00025753,2]
[355037520,1740877877166,-500.0,0.00025753,2]
[355037521,1740877877176,-500.0,0.00025753,2]
[355037522,1740877877186,-500.0,0.00025753,2]
[355037523,1740877877201,-1033.67,0.00025753,2]
[355037524,1740877877211,-515.24679205,0.00025753,2]
[355037525,1740877877221,-500.0,0.00025753,2]
[355037526,1740877877231,-1247.66,0.00025753,2]
[355037527,1740877877240,-1489.13,0.00025753,2]
[355037528,1740877877251,-267.226842,0.00025753,7]
[355037529,1740877877262,-267.226842,0.00025753,7]
[355037530,1740877877272,-500.0,0.00025753,2]
[355037531,1740877877283,-267.226842,0.00025753,7]
[355037532,1740877877293,-267.226842,0.00025753,7]
[355037533,1740877877303,-500.0,0.00025753,2]
[355037534,1740877877315,-500.0,0.00025753,2]
[355037535,1740877877326,-500.0,0.00025753,2]
[355037536,1740877877337,-500.0,0.00025753,2]
[355037537,1740877877347,-742.78,0.00025753,2]
[355037538,1740877877357,-500.0,0.00025753,2]
[355037539,1740877877372,-584.73,0.00025753,2]
[355037540,1740877877382,-500.0,0.00025753,2]
[355037541,1740877877392,-500.0,0.00025753,2]
[355037542,1740877877401,-1392.58,0.00025753,2]
[355037543,1740877877412,-500.99,0.00025753,2]
[355037544,1740877877422,-500.0,0.00025753,2]
[355037545,1740877877432,-500.0,0.00025753,2]
[355037546,1740877877442,-500.0,0.00025753,2]
[355037547,1740877877455,-543.48,0.00025753,2]
[355037548,1740877877464,-500.0,0.00025753,2]
[355037549,1740877877474,-500.0,0.00025753,2]
[355037550,1740877877484,-1145.6,0.00025753,2]
[355037551,1740877877494,-151.0,0.00025753,7]
[355037552,1740877877504,-500.0,0.00025753,2]
[355037553,1740877877513,-2085.36,0.00025753,2]
[355037554,1740877877523,-500.0,0.00025753,2]
[355037555,1740877877534,-1036.64,0.00025753,2]
[355037556,1740877877543,-1085.45,0.00025753,2]
[355037557,1740877877554,-570.7,0.00025753,2]
[355037558,1740877877563,-783.25,0.00025753,2]
[355037559,1740877877573,-500.0,0.00025753,2]
[355037560,1740877877583,-992.68,0.00025753,2]
[355037561,1740877877593,-500.0,0.00025753,2]
[355037562,1740877877603,-500.0,0.00025753,2]
[355037563,1740877877612,-666.84,0.00025753,2]
[355037564,1740877877622,-2619.58,0.00025753,2]
[355037565,1740877877632,-500.0,0.00025753,2]
[355037566,1740877877642,-500.0,0.00025753,2]
[355037567,1740877877652,-505.23536334,0.00025753,2]
[355037568,1740877877662,-500.0,0.00025753,2]
[355037569,1740877877671,-1308.07,0.00025753,2]
[355037570,1740877877681,-500.0,0.00025753,2]
[355037571,1740877877691,-184.713929,0.00025753,7]
[355037572,1740877877701,-184.713929,0.00025753,7]
[355037573,1740877877710,-184.713929,0.00025753,7]
[355037574,1740877877720,-184.713929,0.00025753,7]
[355037575,1740877877730,-511.32,0.00025753,2]
[355037576,1740877877740,-500.0,0.00025753,2]
[355037577,1740877877749,-500.0,0.00025753,2]
[355037578,1740877877759,-500.0,0.00025753,2]
[355037579,1740877877769,-844.32,0.00025753,2]
[355037580,1740877877779,-860.25,0.00025753,2]
[355037581,1740877877788,-500.0,0.00025753,2]
[355037582,1740877877798,-500.0,0.00025753,2]
[355037583,1740877877808,-1082.83,0.00025753,2]
[355037584,1740877877818,-733.47387,0.00025753,7]
[355037585,1740877877827,-621.47,0.00025753,2]
[355037586,1740877877837,-733.47387,0.00025753,7]
[355037587,1740877877847,-733.47387,0.00025753,7]
[355037588,1740877877856,-733.47387,0.00025753,7]
[355037589,1740877877866,-714.62,0.00025753,2]
[355037590,1740877877876,-500.0,0.00025753,2]
[355037591,1740877877886,-500.0,0.00025753,2]
[355037592,1740877877895,-1248.66,0.00025753,2]
[355037593,1740877877905,-271.111896,0.00025753,7]
[355037594,1740877877914,-271.111896,0.00025753,7]
[355037595,1740877877924,-667.8,0.00025753,2]
[355037596,1740877877934,-961.34,0.00025753,2]
[355037597,1740877877943,-271.111896,0.00025753,7]
[355037598,1740877877958,-271.111896,0.00025753,7]
[355037599,1740877877967,-1520.86,0.00025753,2]
[355037600,1740877877977,-500.0,0.00025753,2]
[355037601,1740877877987,-1792.98,0.00025753,2]
[355037602,1740877877997,-502.61,0.00025753,2]
[355037603,1740877878008,-500.0,0.00025753,2]
[355037604,1740877878018,-1040.39,0.00025753,2]
[355037605,1740877878028,-151.0,0.00025753,7]
[355037606,1740877878038,-151.0,0.00025753,7]
[355037607,1740877878048,-911.78,0.00025753,2]
[355037608,1740877878059,-150.43,0.00025753,7]
[355037609,1740877878068,-500.0,0.00025753,2]
[355037610,1740877878078,-1259.12,0.00025753,2]
[355037611,1740877878088,-500.0,0.00025753,2]
[355037612,1740877878097,-500.0,0.00025753,7]
[355037613,1740877878190,-778.3,0.00025753,2]
[355037614,1740877878204,-963.84,0.00025753,2]
[355037615,1740877878214,-500.0,0.00025753,7]
[355037616,1740877878225,-164.82763724,0.00025753,7]
[355037617,1740877878236,-205.44672798,0.00025753,7]
[355037618,1740877878246,-602.12,0.00025753,2]
[355037619,1740877878257,-4214.81,0.00025753,2]
[355037620,1740877878267,-500.0,0.00025753,2]
[355037621,1740877878278,-500.0,0.00025753,7]
[355037622,1740877878288,-2658.76,0.00025753,2]
[355037623,1740877878298,-500.0,0.00025753,2]
[355037624,1740877878309,-1843.96,0.00025753,2]
[355037625,1740877878320,-2309.95,0.00025753,2]
[355037626,1740877878331,-500.0,0.00025753,2]
[355037627,1740877878341,-1498.46,0.00025753,2]
[355037628,1740877878352,-500.0,0.00025753,2]
[355037629,1740877878365,-2443.69,0.00025753,2]
[355037630,1740877878376,-500.0,0.00025753,7]
[355037631,1740877878386,-500.0,0.00025753,2]
[355037632,1740877878396,-150.43,0.00025753,2]
[355037633,1740877878406,-500.0,0.00025753,7]
[355037634,1740877878415,-500.0,0.00025753,2]
[355037635,1740877878425,-500.0,0.00025753,7]
[355037636,1740877878435,-500.0,0.00025753,2]
[355037637,1740877878447,-500.0,0.00025753,2]
[355037638,1740877878458,-500.0,0.00025753,2]
[355037639,1740877878468,-693.1,0.00025753,2]
[355037640,1740877878478,-500.0,0.00025753,2]
[355037641,1740877878487,-1030.020155,0.00025753,7]
[355037642,1740877878497,-2225.36,0.00025753,2]
[355037643,1740877878508,-513.64183561,0.00025753,2]
[355037644,1740877878517,-513.88348399,0.00025753,2]
[355037645,1740877878528,-220676.06,0.00025753,2]
[355037646,1740877878537,-639.67,0.00025753,2]
[355037647,1740877878547,-1030.020155,0.00025753,7]
[355037648,1740877878556,-354.614926,0.00025753,7]
[355037649,1740877878566,-500.0,0.00025753,2]
[355037650,1740877878576,-779.1,0.00025753,2]
[355037651,1740877878587,-500.0,0.00025753,2]
[355037652,1740877878597,-830.96,0.00025753,2]
[355037653,1740877878607,-354.614926,0.00025753,7]
[355037654,1740877878617,-500.95402503,0.00025753,2]
[355037655,1740877878627,-500.0,0.00025753,2]
[355037656,1740877878636,-1728.25,0.00025753,2]
[355037657,1740877878646,-506.74,0.00025753,2]
[355037658,1740877878655,-1388.6,0.00025753,2]
[355037659,1740877878664,-4812.96,0.00025753,2]
[355037660,1740877878673,-500.0,0.00025753,2]
[355037661,1740877878683,-500.0,0.00025753,2]
[355037662,1740877878692,-790.82,0.00025753,2]
[355037663,1740877878703,-500.0,0.00025753,2]
[355037664,1740877878712,-500.0,0.00025753,2]
[355037665,1740877878721,-6089.99,0.00025753,2]
[355037666,1740877878730,-2243.97,0.00025753,2]
[355037667,1740877878739,-500.0,0.00025753,2]
[355037668,1740877878749,-500.0,0.00025753,2]
[355037669,1740877878758,-2644.44,0.00025753,2]
[355037670,1740877878767,-500.0,0.00025753,2]
[355037671,1740877878776,-1405.11,0.00025753,2]
[355037672,1740877878786,-1549.58243,0.00025753,7]
[355037673,1740877878796,-12621.59,0.00025753,2]
[355037674,1740877878805,-500.0,0.00025753,2]
[355037675,1740877878815,-500.0,0.00025753,2]
[355037676,1740877878825,-584.63,0.00025753,2]
[355037677,1740877878835,-1549.58243,0.00025753,7]
[355037678,1740877878845,-500.0,0.00025753,2]
[355037679,1740877878854,-500.0,0.00025753,2]
[355037680,1740877878864,-5963.08,0.00025753,2]
[355037681,1740877878874,-666.73,0.00025753,2]
[355037682,1740877878884,-500.0,0.00025753,2]
[355037683,1740877878893,-500.0,0.00025753,2]
[355037684,1740877878903,-532.47,0.00025753,2]
[355037685,1740877878912,-500.0,0.00025753,2]
[355037686,1740877878922,-500.0,0.00025753,2]
[355037687,1740877878932,-500.0,0.00025753,2]
[355037688,1740877878942,-500.0,0.00025753,2]
[355037689,1740877878952,-500.0,0.00025753,2]
[355037690,1740877878962,-302.51797588,0.00025753,2]
[355037691,1740877878972,-666.26,0.00025753,2]
[355037692,1740877878981,-500.0,0.00025753,2]
[355037693,1740877878991,-1330.61,0.00025753,2]
[355037694,1740877879000,-3272.09,0.00025753,2]
[355037695,1740877879010,-9860.7,0.00025753,2]
[355037696,1740877879020,-610.25,0.00025753,2]
[355037697,1740877879030,-151.0,0.00025753,7]
[355037698,1740877879039,-545.59,0.00025753,2]
[355037699,1740877879048,-14410.22,0.00025753,2]
[355037700,1740877879058,-376.988901,0.00025753,7]
[355037701,1740877879067,-861.67,0.00025753,2]
[355037702,1740877879077,-954.26,0.00025753,2]
[355037703,1740877879086,-857.54,0.00025753,2]
[355037704,1740877879095,-376.988901,0.00025753,7]
[355037705,1740877879105,-329.919589,0.00025753,7]
[355037706,1740877879115,-329.919589,0.00025753,7]
[355037707,1740877879124,-1275.47,0.00025753,2]
[355037708,1740877879133,-1231.32,0.00025753,2]
[355037709,1740877879143,-500.0,0.00025753,2]
[355037710,1740877879152,-1799.99,0.00025753,2]
[355037711,1740877879162,-500.0,0.00025753,2]
[355037712,1740877879171,-1713.59,0.00025753,2]
[355037713,1740877879181,-608.93694024,0.00025753,2]
[355037714,1740877879191,-8901.6,0.00025753,2]
[355037715,1740877879202,-1183.92,0.00025753,2]
[355037716,1740877879211,-500.0,0.00025753,2]
[355037717,1740877879221,-1016.36,0.00025753,2]
[355037718,1740877879231,-500.0,0.00025753,2]
[355037719,1740877879240,-26363.90094518,0.00025753,2]
[355037720,1740877884321,250.0,0.000237,30]
[355037721,1740877884348,252.639255,0.000217,30]
[355037722,1740877886470,500.0,0.00025,30]
[355037723,1740878012376,500.0,0.00025,30]
[355037724,1740878168266,250.0,0.000237,30]
[355037725,1740878168660,250.0,0.000217,30]
[355037726,1740878168888,250.0,0.000197,30]
[355037727,1740878169160,250.0,0.000177,30]
[355037728,1740878169441,250.0,0.000157,30]
[355037729,1740878169969,250.0,0.000137,30]
[355037730,1740878170217,250.0,0.000117,30]
[355037731,1740878170526,250.0,9.7e-05,30]
[355037732,1740878170899,250.0,7.7e-05,30]
[355037733,1740878171250,250.0,5.7e-05,30]
[355037734,1740878171803,250.0,3.7e-05,30]
[355037735,1740878468930,250.0,0.000237,30]
[355037736,1740878469316,250.0,0.000217,30]
[355037737,1740878469637,250.0,0.000197,30]
[355037738,1740878469944,250.0,0.000177,30]
[355037739,1740878470258,250.0,0.000157,30]
[355037740,1740878470888,468.141108,0.000137,30]
[355037745,1740878836118,-269.00245299,0.00023127,2]
[355037748,1740878913992,234.72559365,0.00023,60]
[355037749,1740878916608,158.58178492,0.0001711,2]
[355037750,1740878918827,238.84824573,0.0001,7]
[355037751,1740878919785,609.05617438,9e-05,2]
[355037752,1740878920260,539.57681086,0.00019177,4]
[355037753,1740878920633,10841.49436513,0.000145,2]
[355037754,1740878925310,738.855715,0.0002,120]
[355037755,1740878925943,7104.9460861,0.00014,2]
[355037756,1740878945222,-9036.04098412,0.0002035,2]
[355037757,1740878945251,-300.0,0.00020999,2]
[355037758,1740878945273,-264.54640076,0.00021,2]
[355037759,1740878945295,-5006.18845308,0.00021,2]
[355037760,1740878945316,-1827.50756637,0.00022,2]
[355037761,1740878948144,-130.37982804,0.00022,2]
[355037762,1740878948170,-289.09228898,0.000221,2]
[355037763,1740878948192,-361.79686933,0.00022842,2]
[355037764,1740878951202,-58.20313067,0.00022842,2]
[355037765,1740878951223,-244.90468613,0.00023,2]
[355037766,1740878951243,-8999.999999,0.00023,2]
[355037767,1740878951265,-24173.17449332,0.00023127,2]
[355037768,1740878955752,160.0,0.00025,30]
[355037769,1740878956068,160.0,0.00024818,29]
[355037770,1740878956409,160.0,0.00024637,28]
[355037771,1740878956746,160.0,0.00024455,27]
[355037772,1740878957040,160.0,0.00024273,26]
[355037773,1740878957353,160.0,0.00024092,25]
[355037774,1740878957701,160.0,0.0002391,24]
[355037775,1740878958070,160.0,0.00023728,23]
[355037776,1740878958373,160.0,0.00023547,22]
[355037777,1740878958712,160.0,0.00023365,21]
[355037778,1740878959071,160.0,0.00023183,20]
[355037779,1740878959396,160.0,0.00023002,19]
[355037780,1740878959729,160.0,0.0002282,18]
[355037781,1740878960507,160.0,0.00022638,17]
[355037782,1740878960634,160.0,0.00022457,16]
[355037783,1740878960702,160.0,0.00022275,15]
[355037784,1740878961033,160.0,0.00022093,14]
[355037785,1740878961342,160.0,0.00021912,13]
[355037786,1740878962186,160.0,0.0002173,12]
[355037787,1740878962524,160.0,0.00021548,11]
[355037788,1740878962824,160.0,0.00021367,10]
[355037789,1740878963124,160.0,0.00021185,9]
[355037790,1740878963430,68.07355388,0.00021003,8]
[355037791,1740878963453,91.92644612,0.00021003,8]
[355037792,1740878963746,128.71225941,0.00020822,7]
[355037793,1740878963769,31.28774059,0.00020822,7]
[355037794,1740878964035,160.0,0.0002064,6]
[355037795,1740878964351,6.13515473,0.00020459,5]
[355037796,1740878965101,-160.0,0.00020095,3]
[355037797,1740878965123,-160.0,0.00020277,4]
[355037798,1740878965144,-153.86484527,0.00020459,5]
[355037803,1740879014426,16.13515473,0.00021027,2]
[355037804,1740879014451,233.15176307,0.00021027,2]
[355037805,1740879014477,179.05248723,0.00021027,2]
[355037817,1740879032750,-457.82305369,0.00023127,2]
[355037818,1740879032760,-309.97,0.0002413,3]
[355037819,1740879032778,-265.78,0.0002413,3]
[355037820,1740879032792,-300.0,0.00024139,2]
[355037821,1740879032802,-208.91488602,0.00024139,2]
[355037822,1740879032812,-192.05981857,0.00024139,2]
[355037823,1740879032822,-500.0,0.00024139,2]
[355037824,1740879032831,-365.45224172,0.0002414,2]
[355037825,1740879032843,-4450.0,0.0002414,2]
[355037826,1740879032854,-2800.95077454,0.0002414,2]
[355037862,1740879038416,-214383.59698374,0.0002414,2]
[355037863,1740879038427,-313.69,0.000242,7]
[355037864,1740879038437,-19624.61182001,0.0002424,7]
[355037865,1740879038448,-160.0,0.0002424,7]
[355037866,1740879038458,-160.0,0.0002424,7]
[355037867,1740879038468,-3000.0,0.0002453,2]
[355037868,1740879038479,-437.09444257,0.00024563,2]
[355037869,1740879038490,-500.000001,0.000246,2]
[355037870,1740879038500,-500.0,0.00024642,2]